[Event "*** Titled Tuesday Blitz"]
[Site "Chess.com"]
[Date "2019.12.03"]
[Round "10"]
[White "boasovietica"]
[Black "Gennady_Kozlov"]
[Result "1-0"]
[WhiteElo "2425"]
[BlackElo "2548"]
[TimeControl "180+2"]
[EndTime "15:14:50 PST"]
[Termination "boasovietica won by resignation"]

1. Nf3 {[%clk 0:03:01.9]} 1... d5 {[%clk 0:03:00]} 2. e3 {[%clk 0:03:01.6]} 2...
Nf6 {[%clk 0:03:00.1]} 3. c4 {[%clk 0:03:02.5]} 3... c6 {[%clk 0:02:59.8]} 4.
Nc3 {[%clk 0:02:59.4]} 4... Bg4 {[%clk 0:02:58.9]} 5. cxd5 {[%clk 0:02:56.6]}
5... Nxd5 {[%clk 0:02:59.3]} 6. Qb3 {[%clk 0:02:51.1]} 6... Nxc3 {[%clk
0:02:59.5]} 7. bxc3 {[%clk 0:02:48.5]} 7... Bxf3 {[%clk 0:02:56.1]} 8. gxf3
{[%clk 0:02:48.9]} 8... Qc7 {[%clk 0:02:54.4]} 9. Rb1 {[%clk 0:02:40.6]} 9... b6
{[%clk 0:02:54.4]} 10. a4 {[%clk 0:02:33.1]} 10... e6 {[%clk 0:02:52.4]} 11. a5
{[%clk 0:02:32.8]} 11... Nd7 {[%clk 0:02:53]} 12. d4 {[%clk 0:02:29.1]} 12...
Bd6 {[%clk 0:02:53.1]} 13. Bc4 {[%clk 0:02:11.1]} 13... O-O {[%clk 0:02:49.4]}
14. Rg1 {[%clk 0:02:03.1]} 14... Bxh2 {[%clk 0:02:48.7]} 15. Rg2 {[%clk
0:02:03.7]} 15... b5 {[%clk 0:02:45.5]} 16. Bd3 {[%clk 0:01:47.8]} 16... Bd6
{[%clk 0:02:41]} 17. Ke2 {[%clk 0:01:44.2]} 17... a6 {[%clk 0:02:40]} 18. Bb2
{[%clk 0:01:36.9]} 18... c5 {[%clk 0:02:38.4]} 19. Qc2 {[%clk 0:01:32.8]} 19...
f5 {[%clk 0:02:36.2]} 20. Rbg1 {[%clk 0:01:26.2]} 20... Rf7 {[%clk 0:02:36.4]}
21. d5 {[%clk 0:01:19.3]} 21... c4 {[%clk 0:02:28.7]} 22. dxe6 {[%clk
0:01:20.2]} 22... cxd3+ {[%clk 0:02:29.6]} 23. Qxd3 {[%clk 0:01:22.1]} 23... Re7
{[%clk 0:02:29.1]} 24. exd7 {[%clk 0:01:19.6]} 24... Qxd7 {[%clk 0:02:29.5]} 25.
Qd5+ {[%clk 0:01:16.3]} 1-0

[Event "*** Titled Tuesday Blitz"]
[Site "Chess.com"]
[Date "2019.12.03"]
[Round "10"]
[White "Winehouse83"]
[Black "vugarrasulov"]
[Result "1/2-1/2"]
[WhiteElo "2535"]
[BlackElo "2764"]
[TimeControl "180+2"]
[EndTime "15:14:51 PST"]
[Termination "Game drawn by repetition"]

1. d4 {[%clk 0:03:01.9]} 1... d5 {[%clk 0:02:59.8]} 2. c4 {[%clk 0:03:03]} 2...
Nf6 {[%clk 0:03:00.3]} 3. cxd5 {[%clk 0:03:03.2]} 3... Nxd5 {[%clk 0:03:02.2]}
4. e4 {[%clk 0:03:04.3]} 4... Nb6 {[%clk 0:03:02.3]} 5. Nc3 {[%clk 0:03:05]}
5... g6 {[%clk 0:03:03.9]} 6. Nf3 {[%clk 0:03:05.4]} 6... Bg7 {[%clk 0:03:05.4]}
7. h3 {[%clk 0:03:04.6]} 7... O-O {[%clk 0:03:06.9]} 8. Be2 {[%clk 0:03:04.9]}
8... Nc6 {[%clk 0:03:07.8]} 9. Be3 {[%clk 0:03:05.2]} 9... a5 {[%clk 0:03:07.7]}
10. d5 {[%clk 0:03:03.2]} 10... Ne5 {[%clk 0:03:03.4]} 11. Nxe5 {[%clk
0:03:03.7]} 11... Bxe5 {[%clk 0:03:05.3]} 12. O-O {[%clk 0:02:37.8]} 12... a4
{[%clk 0:03:04.5]} 13. Qc2 {[%clk 0:02:28]} 13... a3 {[%clk 0:03:04.8]} 14. b3
{[%clk 0:02:28.2]} 14... f5 {[%clk 0:03:02.5]} 15. f4 {[%clk 0:02:25.8]} 15...
Bxc3 {[%clk 0:03:01.3]} 16. Qxc3 {[%clk 0:02:26.4]} 16... fxe4 {[%clk
0:03:03.2]} 17. Bxb6 {[%clk 0:02:26.5]} 17... cxb6 {[%clk 0:03:03.9]} 18. Qe5
{[%clk 0:02:25.4]} 18... Qd6 {[%clk 0:03:03.3]} 19. Qxd6 {[%clk 0:02:09]} 19...
exd6 {[%clk 0:03:03.9]} 20. Rac1 {[%clk 0:02:09.6]} 20... Ra5 {[%clk 0:03:00.4]}
21. Rc7 {[%clk 0:02:08.4]} 21... Rc5 {[%clk 0:03:01.6]} 22. Re7 {[%clk 0:01:59]}
22... Rc2 {[%clk 0:03:01.1]} 23. Bb5 {[%clk 0:01:52.8]} 23... Rxa2 {[%clk
0:02:59.6]} 24. Rc1 {[%clk 0:01:53.8]} 24... Rb2 {[%clk 0:02:59.4]} 25. Rcc7
{[%clk 0:01:54.3]} 25... Rd8 {[%clk 0:02:51.8]} 26. Rg7+ {[%clk 0:01:44.4]}
26... Kh8 {[%clk 0:02:53.7]} 27. Rxh7+ {[%clk 0:01:41.8]} 27... Kg8 {[%clk
0:02:55.6]} 28. Rcg7+ {[%clk 0:01:40.5]} 28... Kf8 {[%clk 0:02:57]} 29. Rf7+
{[%clk 0:01:24.7]} 29... Kg8 {[%clk 0:02:57.7]} 30. Rfg7+ {[%clk 0:01:20.6]}
30... Kf8 {[%clk 0:02:59.1]} 31. Rf7+ {[%clk 0:01:21.6]} 31... Kg8 {[%clk
0:03:00.5]} 32. Rfg7+ {[%clk 0:01:10.6]} 1/2-1/2

[Event "*** Titled Tuesday Blitz"]
[Site "Chess.com"]
[Date "2019.12.03"]
[Round "10"]
[White "Micki-taryan"]
[Black "joshdaruca"]
[Result "0-1"]
[WhiteElo "2956"]
[BlackElo "2733"]
[TimeControl "180+2"]
[EndTime "15:15:29 PST"]
[Termination "joshdaruca won by resignation"]

1. e4 {[%clk 0:03:01.9]} 1... c5 {[%clk 0:02:39.7]} 2. Nc3 {[%clk 0:03:01.4]}
2... e6 {[%clk 0:02:40]} 3. g3 {[%clk 0:03:03.3]} 3... Nc6 {[%clk 0:02:40.2]} 4.
Bg2 {[%clk 0:03:05.2]} 4... a6 {[%clk 0:02:41]} 5. d3 {[%clk 0:03:07.1]} 5... b5
{[%clk 0:02:42]} 6. Be3 {[%clk 0:03:08.6]} 6... Bb7 {[%clk 0:02:42.8]} 7. f4
{[%clk 0:03:07.4]} 7... Nf6 {[%clk 0:02:38.3]} 8. e5 {[%clk 0:03:08.4]} 8... Ng8
{[%clk 0:02:37.7]} 9. Nf3 {[%clk 0:03:08.8]} 9... d5 {[%clk 0:02:38.9]} 10. exd6
{[%clk 0:03:09.8]} 10... Bxd6 {[%clk 0:02:39.5]} 11. O-O {[%clk 0:03:11.4]}
11... Nge7 {[%clk 0:02:40.6]} 12. Ne4 {[%clk 0:03:12.3]} 12... Nf5 {[%clk
0:02:32.8]} 13. Bf2 {[%clk 0:03:13.6]} 13... Nfd4 {[%clk 0:02:31.4]} 14. Nxd4
{[%clk 0:03:13.2]} 14... cxd4 {[%clk 0:02:33.3]} 15. a3 {[%clk 0:03:10]} 15...
O-O {[%clk 0:02:33.5]} 16. Qh5 {[%clk 0:03:10.6]} 16... Be7 {[%clk 0:02:32.3]}
17. Nc5 {[%clk 0:03:11.7]} 17... Bxc5 {[%clk 0:02:14.8]} 18. Qxc5 {[%clk
0:03:13.6]} 18... Rc8 {[%clk 0:02:16.5]} 19. Rac1 {[%clk 0:03:14.1]} 19... Qd7
{[%clk 0:02:18]} 20. Rfe1 {[%clk 0:03:03.2]} 20... Rfd8 {[%clk 0:02:19.2]} 21.
Qh5 {[%clk 0:03:04]} 21... Ne7 {[%clk 0:02:17.9]} 22. Be4 {[%clk 0:03:04]} 22...
Bxe4 {[%clk 0:02:13.3]} 23. dxe4 {[%clk 0:03:05.9]} 23... d3 {[%clk 0:02:13.6]}
24. cxd3 {[%clk 0:03:05.8]} 24... Qxd3 {[%clk 0:02:11.6]} 25. Rxc8 {[%clk
0:03:05.5]} 25... Rxc8 {[%clk 0:02:12.1]} 26. Qg5 {[%clk 0:03:05.1]} 26... Nc6
{[%clk 0:02:09.1]} 27. Qc5 {[%clk 0:03:05.3]} 27... h6 {[%clk 0:02:04.5]} 28. f5
{[%clk 0:03:00.4]} 28... Qd7 {[%clk 0:02:04]} 29. Qc3 {[%clk 0:02:56.5]} 29...
Ne7 {[%clk 0:01:59.9]} 30. Qe5 {[%clk 0:02:53.6]} 30... exf5 {[%clk 0:02:00.6]}
31. exf5 {[%clk 0:02:55]} 31... Nxf5 {[%clk 0:02:02.1]} 32. b4 {[%clk
0:02:52.3]} 32... Rc4 {[%clk 0:01:55.5]} 33. Bc5 {[%clk 0:02:52.1]} 33... Nd4
{[%clk 0:01:55.4]} 34. Rf1 {[%clk 0:02:52.6]} 34... Ne6 {[%clk 0:01:54.7]} 35.
Bf2 {[%clk 0:02:51.6]} 35... Qc6 {[%clk 0:01:54.9]} 36. h4 {[%clk 0:02:51.5]}
36... Rc1 {[%clk 0:01:55.7]} 37. Bc5 {[%clk 0:02:42.6]} 37... Rxf1+ {[%clk
0:01:55.7]} 38. Kxf1 {[%clk 0:02:44.5]} 38... Qf3+ {[%clk 0:01:56.6]} 39. Kg1
{[%clk 0:02:44.3]} 39... Qxa3 {[%clk 0:01:57.6]} 40. h5 {[%clk 0:02:44.6]} 40...
Qf3 {[%clk 0:01:57.8]} 41. Kh2 {[%clk 0:02:41.5]} 41... Ng5 {[%clk 0:01:51.5]}
42. Bd4 {[%clk 0:02:39.7]} 42... Qxh5+ {[%clk 0:01:52.8]} 43. Kg1 {[%clk
0:02:38.9]} 43... Nf3+ {[%clk 0:01:53.5]} 0-1

[Event "*** Titled Tuesday Blitz"]
[Site "Chess.com"]
[Date "2019.12.03"]
[Round "10"]
[White "WeAintSurePal"]
[Black "iLuusions"]
[Result "1-0"]
[WhiteElo "2399"]
[BlackElo "2633"]
[TimeControl "180+2"]
[EndTime "15:15:58 PST"]
[Termination "WeAintSurePal won by resignation"]

1. e4 {[%clk 0:03:01.9]} 1... c5 {[%clk 0:03:00.7]} 2. Nf3 {[%clk 0:03:01.6]}
2... e6 {[%clk 0:02:59]} 3. d4 {[%clk 0:03:01.8]} 3... cxd4 {[%clk 0:03:00.9]}
4. Nxd4 {[%clk 0:03:03.7]} 4... a6 {[%clk 0:02:58.3]} 5. c4 {[%clk 0:03:04.5]}
5... Nf6 {[%clk 0:02:58.2]} 6. Nc3 {[%clk 0:03:05.8]} 6... Bb4 {[%clk
0:02:59.4]} 7. Bd3 {[%clk 0:03:01.1]} 7... Nc6 {[%clk 0:02:58.5]} 8. Nc2 {[%clk
0:03:01.2]} 8... Bc5 {[%clk 0:02:58.4]} 9. O-O {[%clk 0:03:01.9]} 9... d6 {[%clk
0:02:52.7]} 10. a3 {[%clk 0:03:02.5]} 10... Qc7 {[%clk 0:02:48.2]} 11. b4 {[%clk
0:03:01.5]} 11... Ba7 {[%clk 0:02:48.9]} 12. Bb2 {[%clk 0:03:02.5]} 12... O-O
{[%clk 0:02:42.4]} 13. Ne2 {[%clk 0:02:47.9]} 13... Rd8 {[%clk 0:02:15.2]} 14.
Rc1 {[%clk 0:02:47.3]} 14... Ne5 {[%clk 0:02:12.5]} 15. Ng3 {[%clk 0:02:47.5]}
15... Nxc4 {[%clk 0:01:23.7]} 16. Bxf6 {[%clk 0:02:43]} 16... gxf6 {[%clk
0:01:23.8]} 17. Nh5 {[%clk 0:02:44.1]} 17... Ne5 {[%clk 0:01:14.6]} 18. Ne3
{[%clk 0:02:39.6]} 18... Qe7 {[%clk 0:01:11.3]} 19. Ng4 {[%clk 0:02:40.3]} 19...
Nd7 {[%clk 0:01:05.5]} 20. Qf3 {[%clk 0:02:38.1]} 20... Kh8 {[%clk 0:00:55.5]}
21. Ngxf6 {[%clk 0:02:31.7]} 21... Nxf6 {[%clk 0:00:55.6]} 22. Nxf6 {[%clk
0:02:27.5]} 22... Bd4 {[%clk 0:00:56.5]} 23. e5 {[%clk 0:02:22.8]} 23... Bxe5
{[%clk 0:00:43.7]} 24. Qh5 {[%clk 0:02:10.7]} 1-0

[Event "*** Titled Tuesday Blitz"]
[Site "Chess.com"]
[Date "2019.12.03"]
[Round "10"]
[White "RiskyDecision"]
[Black "Lovkov_Roman"]
[Result "0-1"]
[WhiteElo "2524"]
[BlackElo "2746"]
[TimeControl "180+2"]
[EndTime "15:16:08 PST"]
[Termination "Lovkov_Roman won by resignation"]

1. d4 {[%clk 0:03:01.9]} 1... Nf6 {[%clk 0:02:59.2]} 2. c4 {[%clk 0:03:02.2]}
2... g6 {[%clk 0:03:00.4]} 3. g3 {[%clk 0:03:03.3]} 3... d5 {[%clk 0:03:01.6]}
4. cxd5 {[%clk 0:03:02.8]} 4... Nxd5 {[%clk 0:03:03.5]} 5. Bg2 {[%clk
0:03:04.2]} 5... Nb6 {[%clk 0:03:04.1]} 6. e4 {[%clk 0:03:04.7]} 6... Bg7 {[%clk
0:03:03.2]} 7. Ne2 {[%clk 0:03:06.2]} 7... Nc6 {[%clk 0:02:56.5]} 8. d5 {[%clk
0:03:04.7]} 8... Na5 {[%clk 0:02:57.9]} 9. Nbc3 {[%clk 0:03:04.4]} 9... O-O
{[%clk 0:02:56.5]} 10. O-O {[%clk 0:03:04.6]} 10... c6 {[%clk 0:02:57.5]} 11. b3
{[%clk 0:03:02.7]} 11... cxd5 {[%clk 0:02:50.2]} 12. exd5 {[%clk 0:03:02.8]}
12... Bg4 {[%clk 0:02:37.7]} 13. f3 {[%clk 0:02:54.8]} 13... Bf5 {[%clk
0:02:33.3]} 14. Be3 {[%clk 0:02:47]} 14... Rc8 {[%clk 0:02:23.6]} 15. Bd4 {[%clk
0:02:47.2]} 15... e5 {[%clk 0:02:24.7]} 16. dxe6 {[%clk 0:02:42.5]} 16... Bxd4+
{[%clk 0:02:24.8]} 17. Nxd4 {[%clk 0:01:53.9]} 17... Rxc3 {[%clk 0:02:21.4]} 18.
Nxf5 {[%clk 0:01:31.7]} 18... gxf5 {[%clk 0:02:23.3]} 19. exf7+ {[%clk
0:01:28.5]} 19... Kxf7 {[%clk 0:02:19.2]} 20. Qe2 {[%clk 0:01:26.2]} 20... Qd3
{[%clk 0:02:14]} 21. Qb2 {[%clk 0:01:19.6]} 21... Rc2 {[%clk 0:01:59.8]} 22. Qe5
{[%clk 0:01:08]} 22... Re8 {[%clk 0:02:00.6]} 23. Qxa5 {[%clk 0:00:40]} 23...
Ree2 {[%clk 0:01:58.7]} 0-1

[Event "*** Titled Tuesday Blitz"]
[Site "Chess.com"]
[Date "2019.12.03"]
[Round "10"]
[White "albi1999"]
[Black "resha1988"]
[Result "0-1"]
[WhiteElo "2605"]
[BlackElo "2747"]
[TimeControl "180+2"]
[EndTime "15:16:18 PST"]
[Termination "resha1988 won by resignation"]

1. d4 {[%clk 0:03:01.9]} 1... Nf6 {[%clk 0:03:00.6]} 2. c4 {[%clk 0:03:03.4]}
2... d6 {[%clk 0:03:00.3]} 3. Nf3 {[%clk 0:03:02.1]} 3... Nbd7 {[%clk
0:02:58.8]} 4. g3 {[%clk 0:03:03.3]} 4... e5 {[%clk 0:02:58.9]} 5. Nc3 {[%clk
0:03:04.7]} 5... Be7 {[%clk 0:02:58.9]} 6. Bg2 {[%clk 0:03:05.6]} 6... c6 {[%clk
0:03:00.4]} 7. e4 {[%clk 0:03:05.1]} 7... O-O {[%clk 0:03:01.3]} 8. O-O {[%clk
0:03:04.9]} 8... Re8 {[%clk 0:03:02.4]} 9. h3 {[%clk 0:03:05.9]} 9... Bf8 {[%clk
0:03:03.1]} 10. Be3 {[%clk 0:03:07.2]} 10... a5 {[%clk 0:03:03.6]} 11. a4 {[%clk
0:03:08.7]} 11... Qc7 {[%clk 0:03:00.2]} 12. Qc2 {[%clk 0:03:07.9]} 12... Nb8
{[%clk 0:02:49.4]} 13. c5 {[%clk 0:03:06.4]} 13... exd4 {[%clk 0:02:43]} 14.
cxd6 {[%clk 0:03:00.8]} 14... Bxd6 {[%clk 0:02:41.8]} 15. Bxd4 {[%clk
0:03:01.8]} 15... Nfd7 {[%clk 0:02:39.6]} 16. Rfe1 {[%clk 0:02:58.7]} 16... Ne5
{[%clk 0:02:31.7]} 17. Nxe5 {[%clk 0:02:58.7]} 17... Bxe5 {[%clk 0:02:33.6]} 18.
Bxe5 {[%clk 0:02:59.7]} 18... Qxe5 {[%clk 0:02:35]} 19. f4 {[%clk 0:03:01.1]}
19... Qc5+ {[%clk 0:02:35.1]} 20. Kh2 {[%clk 0:03:02.6]} 20... Na6 {[%clk
0:02:35.6]} 21. Rad1 {[%clk 0:03:03]} 21... Nb4 {[%clk 0:02:34.7]} 22. Qd2
{[%clk 0:03:04.2]} 22... Be6 {[%clk 0:02:34]} 23. Qd6 {[%clk 0:02:59.9]} 23...
Qxd6 {[%clk 0:02:28.9]} 24. Rxd6 {[%clk 0:03:01.8]} 24... f6 {[%clk 0:02:25.2]}
25. e5 {[%clk 0:02:59.5]} 25... Bb3 {[%clk 0:02:04.5]} 26. e6 {[%clk 0:02:54.5]}
26... f5 {[%clk 0:01:47.3]} 27. g4 {[%clk 0:02:54.9]} 27... g6 {[%clk
0:01:39.3]} 28. gxf5 {[%clk 0:02:51.7]} 28... gxf5 {[%clk 0:01:41.2]} 29. Bf3
{[%clk 0:02:52.5]} 29... Re7 {[%clk 0:00:54.8]} 30. Bh5 {[%clk 0:02:49.4]} 30...
Kg7 {[%clk 0:00:49.8]} 31. Bf7 {[%clk 0:02:41]} 31... Kf6 {[%clk 0:00:50.6]} 32.
Rd2 {[%clk 0:02:15.8]} 32... Bxe6 {[%clk 0:00:41.9]} 33. Rde2 {[%clk 0:02:10.8]}
33... Kxf7 {[%clk 0:00:41.4]} 0-1

[Event "*** Titled Tuesday Blitz"]
[Site "Chess.com"]
[Date "2019.12.03"]
[Round "10"]
[White "Everyfishknows"]
[Black "misha_melnichuk"]
[Result "0-1"]
[WhiteElo "2315"]
[BlackElo "2487"]
[TimeControl "180+2"]
[EndTime "15:16:23 PST"]
[Termination "misha_melnichuk won by resignation"]

1. Nf3 {[%clk 0:03:01.9]} 1... g6 {[%clk 0:03:00.4]} 2. e4 {[%clk 0:02:56]} 2...
Bg7 {[%clk 0:03:02.3]} 3. d4 {[%clk 0:02:54.2]} 3... c5 {[%clk 0:03:03.8]} 4. c4
{[%clk 0:02:55]} 4... cxd4 {[%clk 0:03:04.5]} 5. Nxd4 {[%clk 0:02:55.8]} 5...
Nc6 {[%clk 0:03:06]} 6. Be3 {[%clk 0:02:56.3]} 6... Nf6 {[%clk 0:03:01.3]} 7.
Nc3 {[%clk 0:02:57]} 7... O-O {[%clk 0:03:01.7]} 8. Be2 {[%clk 0:02:57.4]} 8...
d6 {[%clk 0:03:03.3]} 9. O-O {[%clk 0:02:58.1]} 9... Nxd4 {[%clk 0:03:04.1]} 10.
Bxd4 {[%clk 0:02:58.9]} 10... Bd7 {[%clk 0:03:06]} 11. Qd2 {[%clk 0:02:59]}
11... Bc6 {[%clk 0:03:07.6]} 12. f3 {[%clk 0:03:00]} 12... a5 {[%clk 0:03:08.8]}
13. b3 {[%clk 0:03:00.8]} 13... Nd7 {[%clk 0:03:10.4]} 14. Be3 {[%clk
0:03:01.3]} 14... Nc5 {[%clk 0:03:10.9]} 15. Rab1 {[%clk 0:02:58.5]} 15... Be5
{[%clk 0:03:09]} 16. Rfd1 {[%clk 0:02:54.3]} 16... e6 {[%clk 0:03:10.2]} 17. Bd4
{[%clk 0:02:55]} 17... Qf6 {[%clk 0:03:08.2]} 18. Bxe5 {[%clk 0:02:51.7]} 18...
dxe5 {[%clk 0:03:08.7]} 19. Qd6 {[%clk 0:02:52.5]} 19... Na6 {[%clk 0:03:05.9]}
20. Nd5 {[%clk 0:02:48.2]} 20... Qg5 {[%clk 0:03:01.5]} 21. Ne7+ {[%clk
0:02:36.7]} 21... Kg7 {[%clk 0:03:02.6]} 22. Nxc6 {[%clk 0:02:31.9]} 22... bxc6
{[%clk 0:03:04.5]} 23. Qxc6 {[%clk 0:02:17.3]} 23... Nb4 {[%clk 0:03:05.5]} 24.
Qc5 {[%clk 0:02:12.7]} 24... Nxa2 {[%clk 0:03:04.9]} 25. Rd7 {[%clk 0:01:45.7]}
25... Nc3 {[%clk 0:03:05]} 26. Re1 {[%clk 0:01:45]} 26... Rfc8 {[%clk
0:02:56.8]} 27. Qd6 {[%clk 0:01:32.6]} 27... Qe3+ {[%clk 0:02:49.6]} 28. Kf1
{[%clk 0:01:33.4]} 28... Qf4 {[%clk 0:02:49.7]} 29. g3 {[%clk 0:01:29.1]} 29...
Qg5 {[%clk 0:02:51.2]} 30. Kg2 {[%clk 0:01:21]} 30... Rab8 {[%clk 0:02:48.9]}
31. h4 {[%clk 0:00:59.1]} 31... Qf6 {[%clk 0:02:47.7]} 32. Qa6 {[%clk
0:00:51.6]} 32... Rd8 {[%clk 0:02:40.2]} 33. Rxd8 {[%clk 0:00:43.2]} 33... Qxd8
{[%clk 0:02:42.1]} 34. Qa7 {[%clk 0:00:32.1]} 34... Qd2 {[%clk 0:02:40.4]} 35.
Kf2 {[%clk 0:00:32.7]} 35... Rxb3 {[%clk 0:02:36.2]} 36. Qxa5 {[%clk 0:00:22.7]}
36... Nd1+ {[%clk 0:02:35.8]} 37. Rxd1 {[%clk 0:00:22.8]} 37... Qxa5 {[%clk
0:02:37.7]} 0-1

[Event "*** Titled Tuesday Blitz"]
[Site "Chess.com"]
[Date "2019.12.03"]
[Round "10"]
[White "ural58"]
[Black "Sjakkerntobi"]
[Result "0-1"]
[WhiteElo "2321"]
[BlackElo "2152"]
[TimeControl "180+2"]
[EndTime "15:17:21 PST"]
[Termination "Sjakkerntobi won by resignation"]

1. e4 {[%clk 0:03:01.9]} 1... c5 {[%clk 0:02:57.9]} 2. b3 {[%clk 0:03:02.4]}
2... e6 {[%clk 0:02:57]} 3. Qe2 {[%clk 0:02:59.8]} 3... Nc6 {[%clk 0:02:56.6]}
4. Bb2 {[%clk 0:03:00.7]} 4... Nf6 {[%clk 0:02:56.4]} 5. e5 {[%clk 0:03:01.7]}
5... Nd5 {[%clk 0:02:56.3]} 6. Nf3 {[%clk 0:03:03.6]} 6... Be7 {[%clk
0:02:56.5]} 7. g3 {[%clk 0:03:00]} 7... f6 {[%clk 0:02:55.7]} 8. Bg2 {[%clk
0:03:01.9]} 8... O-O {[%clk 0:02:54.6]} 9. O-O {[%clk 0:02:57.2]} 9... fxe5
{[%clk 0:02:51]} 10. Nxe5 {[%clk 0:02:59.1]} 10... Nxe5 {[%clk 0:02:52.5]} 11.
Bxe5 {[%clk 0:02:59.6]} 11... Bf6 {[%clk 0:02:53.6]} 12. Bxd5 {[%clk 0:02:59.8]}
12... exd5 {[%clk 0:02:54.5]} 13. Nc3 {[%clk 0:03:00.9]} 13... d4 {[%clk
0:02:52.7]} 14. Nd5 {[%clk 0:03:01.5]} 14... Bxe5 {[%clk 0:02:53.3]} 15. Qxe5
{[%clk 0:03:01.6]} 15... d6 {[%clk 0:02:55.2]} 16. Qe7 {[%clk 0:02:59.9]} 16...
Qxe7 {[%clk 0:02:44.3]} 17. Nxe7+ {[%clk 0:02:58.9]} 17... Kf7 {[%clk
0:02:45.8]} 18. Nxc8 {[%clk 0:02:48.3]} 18... Raxc8 {[%clk 0:02:46.1]} 19. Rae1
{[%clk 0:02:50.2]} 19... Rfe8 {[%clk 0:02:46.6]} 20. f4 {[%clk 0:02:50.4]} 20...
b5 {[%clk 0:02:45.2]} 21. Kf2 {[%clk 0:02:45]} 21... Rxe1 {[%clk 0:02:45.8]} 22.
Rxe1 {[%clk 0:02:45.8]} 22... c4 {[%clk 0:02:45.5]} 23. b4 {[%clk 0:02:39.1]}
23... d3 {[%clk 0:02:34.7]} 24. c3 {[%clk 0:02:33.1]} 24... Ra8 {[%clk
0:02:32.8]} 25. f5 {[%clk 0:01:15.7]} 25... a5 {[%clk 0:02:29.8]} 26. a3 {[%clk
0:01:12.2]} 26... axb4 {[%clk 0:02:26.9]} 27. axb4 {[%clk 0:01:12.6]} 27... Ra2
{[%clk 0:02:27.6]} 28. Ke3 {[%clk 0:01:08]} 28... Kf6 {[%clk 0:02:25.5]} 29. g4
{[%clk 0:01:06.7]} 29... h5 {[%clk 0:02:26.5]} 30. h3 {[%clk 0:00:59.2]} 30...
hxg4 {[%clk 0:02:26.8]} 31. hxg4 {[%clk 0:00:57.6]} 31... Kg5 {[%clk 0:02:28]}
32. Rf1 {[%clk 0:00:43.4]} 32... Rb2 {[%clk 0:02:16.1]} 33. Rf4 {[%clk
0:00:24.4]} 33... Rxd2 {[%clk 0:02:15.3]} 34. Rd4 {[%clk 0:00:21]} 34... Re2+
{[%clk 0:02:14.9]} 35. Kf3 {[%clk 0:00:22.1]} 35... Rc2 {[%clk 0:02:14.4]} 36.
Rxd6 {[%clk 0:00:23.1]} 36... Rxc3 {[%clk 0:02:13.9]} 37. Rg6+ {[%clk 0:00:24]}
37... Kh4 {[%clk 0:02:15.2]} 38. Rxg7 {[%clk 0:00:23]} 38... d2+ {[%clk
0:02:16.4]} 39. Kf4 {[%clk 0:00:24.1]} 39... Rf3+ {[%clk 0:02:16]} 40. Kxf3
{[%clk 0:00:24]} 40... d1=Q+ {[%clk 0:02:16.3]} 41. Kf4 {[%clk 0:00:25.9]} 41...
Qd4+ {[%clk 0:02:15.5]} 0-1

[Event "*** Titled Tuesday Blitz"]
[Site "Chess.com"]
[Date "2019.12.03"]
[Round "10"]
[White "Triumphmate"]
[Black "JonahWillow"]
[Result "1-0"]
[WhiteElo "2541"]
[BlackElo "2768"]
[TimeControl "180+2"]
[EndTime "15:17:30 PST"]
[Termination "Triumphmate won by resignation"]

1. e4 {[%clk 0:03:01.9]} 1... c5 {[%clk 0:03:01.4]} 2. Nf3 {[%clk 0:03:02.9]}
2... Nc6 {[%clk 0:03:01.3]} 3. d4 {[%clk 0:03:04.5]} 3... cxd4 {[%clk
0:03:03.2]} 4. Nxd4 {[%clk 0:03:06.2]} 4... g6 {[%clk 0:03:03.5]} 5. f4 {[%clk
0:03:07]} 5... Bg7 {[%clk 0:02:59.5]} 6. Nf3 {[%clk 0:03:07.6]} 6... d6 {[%clk
0:03:00.3]} 7. Nc3 {[%clk 0:03:07.4]} 7... Nf6 {[%clk 0:03:01.8]} 8. Bd3 {[%clk
0:03:06.6]} 8... O-O {[%clk 0:03:01.9]} 9. O-O {[%clk 0:03:04.3]} 9... Bg4
{[%clk 0:02:58.4]} 10. Qe1 {[%clk 0:03:04.1]} 10... Rc8 {[%clk 0:02:52.5]} 11.
a3 {[%clk 0:03:03]} 11... a6 {[%clk 0:02:51.6]} 12. Bd2 {[%clk 0:02:56.6]} 12...
b5 {[%clk 0:02:50.9]} 13. Kh1 {[%clk 0:02:53.3]} 13... Qc7 {[%clk 0:02:42.1]}
14. Qh4 {[%clk 0:02:50.3]} 14... Qb7 {[%clk 0:02:26.5]} 15. Rae1 {[%clk
0:02:44.6]} 15... b4 {[%clk 0:02:17.1]} 16. Nd5 {[%clk 0:02:37.5]} 16... Bxf3
{[%clk 0:02:01.3]} 17. Rxf3 {[%clk 0:02:39.4]} 17... Nd4 {[%clk 0:01:50.7]} 18.
Rh3 {[%clk 0:02:36.5]} 18... h5 {[%clk 0:01:52.3]} 19. Nxb4 {[%clk 0:02:25.8]}
19... a5 {[%clk 0:01:48.7]} 20. Nd5 {[%clk 0:02:20.5]} 20... Nxd5 {[%clk
0:01:46.7]} 21. exd5 {[%clk 0:02:22.3]} 21... Qxd5 {[%clk 0:01:47.9]} 22. c4
{[%clk 0:02:16.9]} 22... Qc6 {[%clk 0:01:36]} 23. Bc3 {[%clk 0:02:14]} 23... Bf6
{[%clk 0:01:30.9]} 24. Qg3 {[%clk 0:02:11.2]} 24... Qc5 {[%clk 0:01:11.8]} 25.
b4 {[%clk 0:01:56.1]} 25... axb4 {[%clk 0:01:13.7]} 26. axb4 {[%clk 0:01:51.9]}
26... h4 {[%clk 0:01:15.3]} 27. Rxh4 {[%clk 0:01:43.5]} 27... Bxh4 {[%clk
0:01:07.2]} 28. Qxh4 {[%clk 0:01:41]} 28... Qb6 {[%clk 0:00:44.4]} 29. f5 {[%clk
0:01:19.6]} 29... e5 {[%clk 0:00:30.8]} 30. fxe6 {[%clk 0:01:16.3]} 30... fxe6
{[%clk 0:00:23.5]} 31. Bxd4 {[%clk 0:01:13.8]} 1-0